Cogmind - Beta 13 @@@ ROGUE MODE // 2024.04.24 @ 23:05:24 Player: Johnny5001 Result: Destroyed by as-19782 with Assembled F-torch Performance ------------- Evolutions (0) 0 Regions Visited (3) 600 Robots Destroyed (0) 0 Value Destroyed (0) 0 Prototype IDs (1) 20 Alien Tech Used (0) 0 Bonus (0) 0 TOTAL SCORE: 620 Bonus ------- None Cogmind --------- Core Integrity 0/250 Matter 204/300 Energy 95/100 System Corruption 6% Temperature Cool (20) Movement Treading (160) Location -10/Exiles Parts ------- > --- POWER (1) -------- (None) > --- PROPULSION (2) --- Light Treads > --- UTILITY (2) ------ Small Storage Unit > --- WEAPON (2) ------- (None) > --- INVENTORY (8) ---- Light Ion Engine Light Ion Engine Light Treads Light Treads Structural Scanner Improved Terrain Scanner Peak State ------------ > --- POWER ------------ Light Ion Engine > --- PROPULSION ------- Light Treads Light Treads > --- UTILITY ---------- Small Storage Unit Experimental Sensor Array > --- WEAPON ----------- Small Laser Grenade Launcher > --- INVENTORY -------- Light Ion Engine Light Ion Engine Light Treads Light Treads Light Treads Light Treads Structural Scanner Improved Terrain Scanner [Rating: 16] Favorites ----------- Power Ion Engine Engine Ion Engine Propulsion Light Treads Treads Light Treads Wheel Wheel Utility Small Storage Unit Device Improved Terrain Scanner Storage Small Storage Unit Weapon Light Assault Rifle Energy Gun Small Laser Ballistic Gun Light Assault Rifle Launcher Grenade Launcher Build | -11 -10 -10 -10 ------- Run | Yrd Mat Min Exi Slots Evolved . | . . . . Power . | . . . . Propulsion . | . . . . Utility . | . . . . Weapon . | . . . . Parts Attached 20 | 11 3 4 2 Power 3 | 2 . 1 . Engine 3 | 2 . 1 . Core . | . . . . Reactor . | . . . . Propulsion 7 | 3 2 . 2 Treads 6 | 2 2 . 2 Leg . | . . . . Wheel 1 | 1 . . . Hover . | . . . . Flight . | . . . . Utility 6 | 3 . 3 . Device 5 | 2 . 3 . Storage 1 | 1 . . . Processor . | . . . . Hackware . | . . . . Protection . | . . . . Artifact . | . . . . Weapon 4 | 3 1 . . Energy Gun 1 | 1 . . . Energy Cannon . | . . . . Ballistic Gun 2 | 2 . . . Ballistic Cannon . | . . . . Launcher 1 | . 1 . . Special Weapon . | . . . . Impact Weapon . | . . . . Slashing Weapon . | . . . . Piercing Weapon . | . . . . Special Melee Weapon . | . . . . Unidentified Prototypes 1 | . . 1 . Parts Lost 9 | 3 . . 6 Power 1 | . . . 1 Propulsion 3 | 1 . . 2 Utility 2 | 1 . . 1 Weapon 3 | 1 . . 2 Highest Loss Streak 6 | 3 . . 6 To Critical Strikes . | . . . . Average Slot Usage (%) 99 | . 99 100 98 Engine 14 | . 14 14 14 Treads 17 | . 14 28 28 Wheel 10 | . 13 . . Device 13 | . 14 14 13 Storage 14 | . 14 14 14 Energy Gun 13 | . 14 14 13 Ballistic Gun 10 | . 13 . . Launcher 3 | . . 14 13 Naked Turns . | . . . . Heaviest Build 15 | 13 15 15 13 Greatest Support 40 | 40 40 40 40 Greatest Overweight (x) . | . . . . Average Overweight (x) . | . . . . Largest Inventory Capacity 8 | 8 8 8 8 Average Capacity 7 | 7 8 8 8 Most Carried 8 | 8 8 8 8 Average Carried 7 | 6 7 7 7 Final Capacity 8 | 8 8 8 8 Final Carried 8 | 8 8 8 6 Class Distribution -------------------- 100% | Mutant Dominant Class ---------------- Mutant | -10/Materials Mutant | -10/Mines Mutant | -10/Exiles Resources | -11 -10 -10 -10 ----------- Run | Yrd Mat Min Exi Matter Collected 378 | 338 . 40 . Remotely . | . . . . Salvage Created 64 | 64 . . . Parts . | . . . . Haulers Intercepted . | . . . . Recyclers Shooed . | . . . . Parts Field Recycled . | . . . . Retrieved Matter . | . . . . Parts Self-Destructed . | . . . . Prevented . | . . . . Kills | -11 -10 -10 -10 ------- Run | Yrd Mat Min Exi Combat Hostiles Destroyed 5 | 5 . . . Guns 5 | 5 . . . Classes Destroyed 1 | 1 . . . Assembled 5 | 5 . . . Best Kill Streak 2 | 2 . . . Combat Bots Only 2 | 2 . . . Max Kills in Single Turn 1 | 1 . . . Gunslinging . | . . . . Exploded . | . . . . Melee . | . . . . Uniques/NPCs Destroyed . | . . . . Combat | -11 -10 -10 -10 -------- Run | Yrd Mat Min Exi Hostile Shots Fired 67 | 44 . . 23 Missed 14 | 10 . . 4 Damage Taken 1313 | 496 . . 817 Core 251 | 34 . . 217 Absorbed by Shields . | . . . . Core Remaining (%) 86 | 86 . . . Volleys Fired 35 | 24 . . 11 Largest 2 | 2 . . 1 Hottest 60 | 60 . . 40 Shots Fired 59 | 48 . . 11 Gun 50 | 48 . . 2 Cannon . | . . . . Launcher 9 | . . . 9 Special . | . . . . Kinetic 43 | 43 . . . Thermal 7 | 5 . . 2 Explosive 9 | . . . 9 Electromagnetic . | . . . . Robot Hit Streak 7 | 7 . . 2 Robot Miss Streak 4 | 4 . . 1 Penetration Max . | . . . . Secondary Targets . | . . . . Shots Hit Robots 28 | 27 . . 1 Core Hits 17 | 14 . . 3 Critical Kills . | . . . . Critical Parts Destroyed . | . . . . Critical Strikes . | . . . . Melee Attacks . | . . . . Impact . | . . . . Slashing . | . . . . Piercing . | . . . . Sneak Attacks . | . . . . Combat Hostiles . | . . . . Follow-up Attacks . | . . . . Damage Inflicted 243 | 229 . . 14 Guns 240 | 229 . . 11 Cannons . | . . . . Explosions . | . . . . Melee . | . . . . Ramming 3 | . . . 3 Kinetic 205 | 205 . . . Thermal 35 | 24 . . 11 Explosive . | . . . . Electromagnetic . | . . . . Impact . | . . . . Slashing . | . . . . Piercing . | . . . . Highest Corruption 6 | . . . 6 Average Corruption 6 | . . . 6 Corruption Purged . | . . . . Corruption Blocked . | . . . . Overload Shots . | . . . . Overflow Damage . | . . . . Projectiles . | . . . . Explosions . | . . . . Melee . | . . . . Knockbacks . | . . . . Impact . | . . . . Kinetic . | . . . . Secondary . | . . . . Self-Inflicted Damage 37 | . . . 37 Shots 2 | . . . 2 Rammed 3 | . . . 3 Targets Rammed 3 | . . . 3 Kicked . | . . . . Crushed . | . . . . Highest Temperature 40 | 40 . . 20 Average Temperature 20 | 20 . . 20 Received Heat Transfer 80 | . . . 80 Siege Activations . | . . . . Robots Corrupted . | . . . . Combat Hostiles . | . . . . Parts Fried . | . . . . Impact Corruptions . | . . . . Robots Melted . | . . . . Combat Hostiles . | . . . . Parts Melted . | . . . . Heat Transferred 75 | 50 . . 25 Parts Sabotaged . | . . . . Parts Stolen . | . . . . Parts Stripped . | . . . . Power Chain Reactions . | . . . . Alert | -11 -10 -10 -10 ------- Run | Yrd Mat Min Exi Peak Influence 15 | 15 15 5 . Initial 5 | . . 5 . Average . | . . 4 . Maximum Alert Level . | . . . . Low Security (%) 100 | 100 100 100 . Level 1 . | . . . . Level 2 . | . . . . Level 3 . | . . . . Level 4 . | . . . . Level 5 . | . . . . High Security . | . . . . Max Security . | . . . . Squads Dispatched . | . . . . Investigation . | . . . . Extermination . | . . . . Reinforcement . | . . . . Assault . | . . . . Garrison . | . . . . Intercept . | . . . . Searches Triggered . | . . . . Construction Impeded . | . . . . Haulers Reinforced . | . . . . Active Scanning Responses . | . . . . Cargo Convoy Interrupts . | . . . . Stealth | -11 -10 -10 -10 --------- Run | Yrd Mat Min Exi Distress Signals . | . . . . Communications Jammed . | . . . . Distress Signals . | . . . . Times Spotted 14 | 6 1 . 7 Peak Tracking Total 9 | 2 1 . 9 Tactical Retreats 1 | 1 . . . Traps | -11 -10 -10 -10 ------- Run | Yrd Mat Min Exi Traps Triggered . | . . . . Indirectly . | . . . . Trap Hack Attempts . | . . . . Triggered . | . . . . Disarmed . | . . . . Reprogrammed . | . . . . Reused . | . . . . Traps Extracted . | . . . . Installed . | . . . . Triggered . | . . . . Machines | -11 -10 -10 -10 ---------- Run | Yrd Mat Min Exi Machines Disabled 1 | . . . 1 Max in Single Turn 1 | . . . 1 Machines Repaired . | . . . . Machines Dismantled . | . . . . Machines Sabotaged . | . . . . Overloaded Fab Kills . | . . . . Hacking | -11 -10 -10 -10 --------- Run | Yrd Mat Min Exi Machines Accessed . | . . . . Terminals . | . . . . Fabricators . | . . . . Repair Stations . | . . . . Recycling Units . | . . . . Scanalyzers . | . . . . Garrison Access . | . . . . Total Hacks . | . . . . Successful . | . . . . Failed . | . . . . Catastrophic . | . . . . Database Lockouts . | . . . . Manual . | . . . . Terminals . | . . . . Fabricators . | . . . . Repair Stations . | . . . . Recycling Units . | . . . . Scanalyzers . | . . . . Garrison Access . | . . . . Terminal Hacks . | . . . . Fabricator Hacks . | . . . . Repair Station Hacks . | . . . . Recycling Unit Hacks . | . . . . Scanalyzer . | . . . . Garrison Access Hacks . | . . . . Unauthorized Hacks . | . . . . Terminals . | . . . . Fabricators . | . . . . Repair Stations . | . . . . Recycling Units . | . . . . Scanalyzers . | . . . . Garrison Access . | . . . . Data Cores Recovered . | . . . . Used . | . . . . Hacking Detections . | . . . . Full Trace Events . | . . . . Feedback Events . | . . . . Feedback Blocked . | . . . . Robot Schematics Acquired . | . . . . Robots Built . | . . . . Authchips . | . . . . Time . | . . . . Total Robot Build Rating . | . . . . Part Schematics Acquired . | . . . . Parts Built . | . . . . Authchips . | . . . . Time . | . . . . Total Part Build Rating . | . . . . Parts Repaired . | . . . . Time . | . . . . Parts Recycled . | . . . . Recycled Matter . | . . . . Retrieved Matter . | . . . . Retrieved Components . | . . . . Parts Scanalyzed . | . . . . Part Schematics Acquired . | . . . . Parts Damaged . | . . . . Bothacking | -11 -10 -10 -10 ------------ Run | Yrd Mat Min Exi Used RIF Installer . | . . . . Robots Hacked . | . . . . Non-combat . | . . . . Combat . | . . . . Robot Hacks Applied . | . . . . Relay Couplers Released . | . . . . Fabnet Peak Effective % . | . . . . Robots Rewired . | . . . . Allies Hacked . | . . . . Hacks Repelled . | . . . . Allies | -11 -10 -10 -10 -------- Run | Yrd Mat Min Exi Total Allies . | . . . . Largest Group . | . . . . Highest-Rated Group . | . . . . Highest-Rated Ally . | . . . . Total Orders . | . . . . Ally Attacks . | . . . . Total Damage . | . . . . Kills . | . . . . Allies Corrupted . | . . . . Allies Melted . | . . . . Intel | -11 -10 -10 -10 ------- Run | Yrd Mat Min Exi Robot Analysis Total . | . . . . Derelict Logs Recovered 1 | . . 1 . Drone Launches . | . . . . Drone Recoveries . | . . . . Exploration | -11 -10 -10 -10 ------------- Run | Yrd Mat Min Exi Turns Passed 6525 | 3297 2376 478 374 Spaces Moved 1385 | 852 33 284 216 Core 5 | 5 . . . Treads 1380 | 847 33 284 216 Legs . | . . . . Wheels . | . . . . Hover . | . . . . Flight . | . . . . Fastest Speed 50 | 50 160 160 160 Average Speed 159 | 159 160 160 160 Slowest Speed 160 | 160 160 160 160 Overloaded Moves . | . . . . Propulsion Burnouts . | . . . . Robots Hopped . | . . . . Cave-ins Triggered 1 | . . . 1 Exploration Rate (%) 54 | 94 14 53 57 Regions Visited 3 Branch Regions 2 Pre-discovered Areas 1 | . . 1 . Known Exits Taken . | . . . . Unknown Exits Taken 3 | 1 1 1 . Scrap Searched 1 | . . 1 . Spaces Dug 30 | . . . 30 Terrain Destroyed 43 | . . . 43 Melee . | . . . . Projectile . | . . . . AOE 43 | . . . 43 Terrain Rammed . | . . . . Walls Destroyed . | . . . . Machines Disabled . | . . . . Actions | -11 -10 -10 -10 --------- Run | Yrd Mat Min Exi Total 5646 | 2749 2358 307 232 Wait 4178 | 1850 2312 16 . Move 1381 | 851 32 283 215 Hop . | . . . . Pick Up 19 | 13 4 2 . Fast Attach 8 | 5 3 . . Attach 7 | 5 . . 2 Detach . | . . . . Swap 5 | 1 . 4 . Drop 9 | . 7 2 . Fire 35 | 24 . . 11 Melee . | . . . . Ram . | . . . . Kick . | . . . . Crush 3 | . . . 3 Escape Stasis 1 | . . . 1 Rewire . | . . . . Trap . | . . . . Miscellaneous . | . . . . Route ------- -11/Scrapyard -10/Materials -10/Mines -10/Exiles History --------- Turn | Location | Event 3 | -11/Scrapyard | Discovered new exit (range 15) 1523 | -11/Scrapyard | Assembled infested the area 2933 | -11/Scrapyard | Lost 3 parts (1n1u1w) 3298 | -11/Scrapyard | Entered Materials 3299 | -10/Materials | Build established: Mutant 3952 | -10/Materials | Discovered new exit (range 16) 5674 | -10/Materials | Entered Mines 5717 | -10/Mines | Met a Derelict bent on vengeance 5750 | -10/Mines | Learned location of Zion (-7) 5872 | -10/Mines | Assembled infested the area 5959 | -10/Mines | Met 8R-AWN 6021 | -10/Mines | Found a damaged Exp. Sensor Array with a note attached 6028 | -10/Mines | Found Prototype Device 6029 | -10/Mines | Identified Exp. Sensor Array 6053 | -10/Mines | Discovered new exit (range 5) 6152 | -10/Mines | Entered Exiles 6191 | -10/Exiles | Welcomed by 8R-AWN 6218 | -10/Exiles | Met EX-HEX 6242 | -10/Exiles | Learned about 8R-AWN's background 6316 | -10/Exiles | Met EX-DEC 6399 | -10/Exiles | Met EX-BIN 6492 | -10/Exiles | Attacked by the Exiles 6506 | -10/Exiles | Crushed by falling debris 6507 | -10/Exiles | Core integrity fell below 50% 6525 | -10/Exiles | Core integrity fell below 20% 6526 | -10/Exiles | Destroyed by as-19782 with Assembled F-torch Last Messages --------------- data and tweak this thing to perfection, the faster I can get back to my spacelab designs." The unstable cave ceiling collapses. EX-Vault Access disabled. EXILES: Hostile robot within lab perimeter. Defensive protocols time, folks! The unstable cave ceiling collapses. Crushed by falling debris. Exp. Sensor Array destroyed. System corrupted by crushing effect (+5). Grenade Launcher destroyed. System corrupted by crushing effect (+1). Sml. Laser destroyed. Lgt. Treads destroyed. Slammed into as-88731. Lgt. Treads destroyed. Lgt. Ion Engine destroyed. Slammed into as-78543. Lgt. Treads severed. Slammed into as-78543. Map ----- +----------------------------------------------------+ | | | | | | | | | | | | | | | | | | | | | | | | | | | | | | | | | | | | | | | ?????????????????????????????????????????????????? | | ?????????????????????????????????????????????????? | | ????????????????????????????????????#????????????? | | ?????????????????????####???????### #????????????? | | ?????????????????????# #???????# #????????????? | | ?????????????????????# a########## #????????????? | | ?????????????????????# =@a #????????????? | | ?????????????????????##aa #?????????????? | | ?????????????????????### aaa #?????????????? | | ???????????????????????## #####???????????? | | ????????????????????????## """"""??????????? | | ?????????????????????????# ## """??????????? | | ?????????????????????????# X""??????????? | | ?????????????????????????# ## """??????????? | | ???????????????????####??# #?""""""??????????? | | ??????????????????""""""?# #?######??????????? | | ??????????????????"""" ## #?????????????????? | | ?????????????????#""X" #?????????????????? | | ?????????????????#" #?????????????????? | | ?????????????????#" ## #?????????????????? | | ?????????????????#""""""?# #?????????????????? | | ?????????????????##"###??# #?????????????????? | | ?????????????????????????# #???""""??????????? | | ?????????????????????????# #??""""""?????????? | | ????????????????????????## ###"" """?????????? | | ????????????????????????#" """"????????? | | ????????????????????????#" """????????? | | ????????????????????????#" """????????? | | ????????????????????????#" """????????? | | ???????????####?????????#" """????????? | | ??????????? ""?????????#" """????????? | +----------------------------------------------------+ Best States ------------- Heat Dissipation 25 Energy Generation 10 Energy Capacity 250 Matter Stores 300 Matter Capacity 300 Sight Range 16 Robot Scan Range 20 Terrain Scan Range 16 Terrain Scan Density 10 Evasion (%) 40 Recoil Reduction 2 Item Schematics ----------------- None Robot Schematics ------------------ None Fabricated ------------ Nothing Alien Tech Used ----------------- None Achievements -------------- Curiosity Killed The Cat Challenges ------------ None Game ------ Seed StasisStormTearclaws Manual? 0 Play Time 00:25:56 Cumulative 8.0 hours Start 2024.04.24 @ 22:31:16 End 2024.04.24 @ 23:05:24 Sessions 1 Manual Loads 0 Difficulty Rogue Special Mode None Game No. 8 Rogue 8 Adventurer 0 Explorer 0 Win Type - Total 0 Types 0/0/0/0/0/0/0/0/0 Lore% 12 Gallery% 14 Achievement% 13 Wizard Run 0 Options --------- Layout 1 ASCII 0 Keyboard 0 Movement Mouse Keybinds 0 Fullscreen 1 Font 24/Smallcaps Map View 50x35 Zoom Use 0% Tactical HUD 0 Map Filters NONE Filters NONE Steam 0 RUN: 077dc871-cc49-40d7-b4be-7ce628890ef4